Cogmind - Beta 15 @@@ ROGUE MODE // 2025.06.04 @ 20:33:06 Player: 7604 Result: Destroyed by MH-94I(R) with Subdweller Laser Performance ------------- Evolutions (0) 0 Regions Visited (2) 400 Robots Destroyed (29) 145 Value Destroyed (765) 765 Prototype IDs (11) 220 Alien Tech Used (0) 0 Bonus (-59) -59 TOTAL SCORE: 1471 Bonus ------- Friendly Fire -59 Cogmind --------- Core Integrity 0/250 Matter 280/300 Energy 30/200 System Corruption 0% Temperature Hot (200) Movement Treading (360) Ox2 Location -10/Subcaves Parts ------- > --- POWER (1) -------- Subdweller Power Source > --- PROPULSION (2) --- Spiked Treads Spiked Treads > --- UTILITY (2) ------ Huge Storage Unit Makeshift Light Armor Plating > --- WEAPON (2) ------- Subdweller Beam Cannon Subdweller Beam Cannon > --- INVENTORY (25) --- Subdweller Power Source Subdweller Power Source Spiked Treads Structural Scanner Seismic Detector Scrap Shield Subdweller Laser Subdweller Shrapnel Launcher Multitool SUBCON Basin (Full) Peak State ------------ > --- POWER ------------ Subdweller Power Source > --- PROPULSION ------- Spiked Treads Spiked Treads > --- UTILITY ---------- Huge Storage Unit Makeshift Light Armor Plating > --- WEAPON ----------- Subdweller Laser Subdweller Beam Cannon > --- INVENTORY -------- Subdweller Power Source Subdweller Power Source Spiked Treads Structural Scanner Seismic Detector Scrap Shield Subdweller Beam Cannon Subdweller Shrapnel Launcher Multitool SUBCON Basin [Rating: 34] Favorites ----------- Power Ion Engine Engine Ion Engine Propulsion Light Treads Treads Light Treads Leg Aluminum Leg Utility Seismic Detector Device Seismic Detector Storage Huge Storage Unit Protection Makeshift Light Armor Plating Weapon Autogun Energy Gun Subdweller Laser Energy Cannon Subdweller Beam Cannon Ballistic Gun Autogun Ballistic Cannon Battle Cannon Launcher Grenade Launcher Special Melee Weapon Datajack Build | -11 -10 -10 ------- Run | Yrd Mat Sub Slots Evolved . | . . . Power . | . . . Propulsion . | . . . Utility . | . . . Weapon . | . . . Parts Attached 33 | 2 10 21 Power 4 | . 2 2 Engine 4 | . 2 2 Core . | . . . Reactor . | . . . Propulsion 6 | . 2 4 Treads 6 | . 2 4 Leg . | . . . Wheel . | . . . Hover . | . . . Flight . | . . . Utility 8 | 1 3 4 Device 5 | 1 1 3 Storage 2 | . 2 . Processor . | . . . Hackware . | . . . Protection 1 | . . 1 Artifact . | . . . Weapon 15 | 1 3 11 Energy Gun 3 | . . 3 Energy Cannon 3 | . . 3 Ballistic Gun 5 | 1 2 2 Ballistic Cannon 1 | . . 1 Launcher 2 | . 1 1 Special Weapon . | . . . Impact Weapon . | . . . Slashing Weapon . | . . . Piercing Weapon . | . . . Special Melee Weapon 1 | . . 1 Unidentified Prototypes . | . . . Parts Lost 1 | . . 1 Power . | . . . Propulsion . | . . . Utility 1 | . . 1 Weapon . | . . . Highest Loss Streak 1 | . . 1 To Critical Strikes . | . . . Average Backups 11 | 6 10 11 Power 1 | 1 2 1 Propulsion 1 | 4 1 1 Utility 4 | . 3 4 Weapon 2 | 1 3 2 Tool/Special . | . . . Unused Backups 25 | 5 3 17 Power 5 | 1 . 4 Propulsion 7 | 2 2 3 Utility 6 | 1 . 5 Weapon 6 | 1 1 4 Tool/Special 1 | . . 1 Average Slot Usage (%) 99 | . 99 99 Engine 14 | . 14 14 Treads 26 | . 23 27 Leg 1 | . 4 . Device 13 | . 14 13 Storage 14 | . 14 14 Energy Gun 5 | . 2 6 Energy Cannon 4 | . . 6 Ballistic Gun 13 | . 25 9 Ballistic Cannon 4 | . . 5 Peak Build Rating 34 | 8 12 34 Average Rating 22 | 6 10 26 On Entrance 8 | 6 8 11 Naked Turns . | . . . Heaviest Build 98 | 13 92 98 Greatest Support 40 | 20 40 40 Greatest Overweight (x) 2 | . 2 2 Average Overweight (x) 1 | . . 2 Largest Inventory Capacity 25 | 8 25 25 Average Capacity 22 | 8 17 25 Most Carried 25 | 8 17 25 Average Carried 20 | 6 10 23 Final Capacity 25 | 8 25 25 Final Carried 25 | 8 17 25 Class Distribution -------------------- 84% | Mutant 13% | Scavenger-Mutant Dominant Class ---------------- Mutant | -10/Materials Mutant | -10/Subcaves Resources | -11 -10 -10 ----------- Run | Yrd Mat Sub Matter Collected 1314 | 213 481 620 Remotely . | . . . Salvage Created 857 | 48 508 301 Parts 52 | 6 34 12 Haulers Intercepted 2 | . 2 . Recyclers Shooed 2 | 1 1 . Parts Field Recycled . | . . . Retrieved Matter . | . . . Parts Self-Destructed 21 | . . 21 Prevented . | . . . Kills | -11 -10 -10 ------- Run | Yrd Mat Sub Combat Hostiles Destroyed 20 | . 10 10 Guns 12 | . 10 2 Cannons 7 | . . 7 AOE 1 | . . 1 Classes Destroyed 10 | 1 6 3 Builder 1 | . 1 . Tunneler 2 | 2 . . Hauler 2 | . 2 . Operator 1 | . 1 . Turret 1 | . . 1 Watcher 2 | . 2 . Swarmer 5 | . 3 2 Grunt 7 | . 7 . Artisan 1 | . . 1 Subdweller 8 | . . 8 Best Kill Streak 4 | 1 3 4 Combat Bots Only 3 | . 3 3 Max Kills in Single Turn 2 | 1 1 2 Gunslinging . | . . . Exploded 1 | . . 1 Melee . | . . . Uniques/NPCs Destroyed . | . . . Combat | -11 -10 -10 -------- Run | Yrd Mat Sub Hostile Shots Fired 110 | . 32 78 Missed 38 | . 7 31 Hits 72 | . 25 47 Projectile 72 | . 25 47 AOE 3 | . . 3 Critical Strikes 1 | . . 1 Damage Taken 1084 | . 299 785 Core 265 | . 57 208 Absorbed by Shields 5 | . . 5 Core Remaining (%) 100 | 100 . . Volleys Fired 152 | 3 61 88 Largest 2 | 2 2 2 Hottest 160 | 70 70 160 Shots Fired 249 | 6 121 122 Gun 196 | 6 120 70 Cannon 46 | . . 46 Launcher 7 | . 1 6 Special . | . . . Kinetic 123 | 3 87 33 Thermal 121 | 3 33 85 Explosive 5 | . 1 4 Electromagnetic . | . . . Robot Hit Streak 16 | 2 12 16 Robot Miss Streak 3 | 1 3 3 Penetration Max . | . . . Secondary Targets . | . . . Shots Hit Robots 128 | 3 78 47 Core Hits 43 | 2 24 17 Critical Kills . | . . . Critical Parts Destroyed 2 | . 1 1 Critical Strikes 5 | . 3 2 Burn 2 | . 2 . Destroy 2 | . 1 1 Blast 1 | . . 1 Melee Attacks 1 | . . 1 Impact . | . . . Slashing . | . . . Piercing . | . . . Sneak Attacks 1 | . . 1 Combat Hostiles . | . . . Follow-up Attacks . | . . . Damage Inflicted 2247 | 40 1075 1132 Guns 1494 | 39 1067 388 Cannons 581 | . . 581 Explosions 163 | . . 163 Melee . | . . . Ramming 9 | 1 8 . Kinetic 1215 | 15 815 385 Thermal 860 | 24 252 584 Explosive 163 | . . 163 Electromagnetic . | . . . Impact . | . . . Slashing . | . . . Piercing . | . . . Highest Corruption . | . . . Average Corruption . | . . . Corruption Purged . | . . . Corruption Blocked . | . . . Overload Shots . | . . . Overflow Damage 8 | . . 8 Projectiles . | . . . Explosions 8 | . . 8 Melee . | . . . Knockbacks 5 | . . 5 Impact . | . . . Kinetic 5 | . . 5 Secondary . | . . . Self-Inflicted Damage . | . . . Shots . | . . . Rammed . | . . . Targets Rammed 4 | 1 3 . Kicked 4 | 1 3 . Crushed . | . . . Highest Temperature 194 | 18 111 194 Average Temperature 23 | 9 20 33 Received Heat Transfer 328 | . 144 184 Siege Activations . | . . . Martial Activations . | . . . Shielding Activations . | . . . Robots Disrupted . | . . . Combat Hostiles . | . . . Robots Corrupted . | . . . Combat Hostiles . | . . . Parts Fried . | . . . Impact Corruptions . | . . . Robots Melted . | . . . Combat Hostiles . | . . . Parts Melted 6 | . 1 5 Heat Transferred 1720 | 74 888 758 Parts Sabotaged . | . . . Parts Stolen . | . . . Parts Stripped . | . . . Power Chain Reactions . | . . . Alert | -11 -10 -10 ------- Run | Yrd Mat Sub Maximum Alert Level . | . . . Low Security (%) 100 | 100 100 . Level 1 . | . . . Level 2 . | . . . Level 3 . | . . . Level 4 . | . . . Level 5 . | . . . High Security . | . . . Max Security . | . . . Peak Influence 117 | 5 117 . Initial . | . . . Average 22 | 1 23 . Influence Increases 502 | 10 432 60 Destroy 0b10 Robot/C 260 | . 200 60 Destroy 0b10 Robot/NC 40 | 10 30 . Destroy Leader 58 | . 58 . Successful Hack 13 | . 13 . Select Force Hacks 60 | . 60 . Disable Machine 45 | . 45 . Destroy Structure 11 | . 11 . Lose Combat Pursuer 15 | . 15 . Influence Decreases 502 | 10 432 60 Time Decay 492 | 10 422 60 Lost Ally 10 | . 10 . Squads Dispatched 3 | . 3 . Investigation 2 | . 2 . Extermination . | . . . Reinforcement 1 | . 1 . Assault . | . . . Garrison . | . . . Intercept . | . . . Searches Triggered . | . . . Construction Impeded . | . . . Haulers Reinforced . | . . . Active Scanning Responses . | . . . Cargo Convoy Interrupts . | . . . Stealth | -11 -10 -10 --------- Run | Yrd Mat Sub Distress Signals 2 | . 2 . Communications Jammed . | . . . Distress Signals . | . . . Times Spotted 45 | . 28 17 Peak Tracking Total 8 | . 4 8 Tactical Retreats 1 | . 1 . Traps | -11 -10 -10 ------- Run | Yrd Mat Sub Traps Triggered . | . . . Indirectly . | . . . Trap Hack Attempts . | . . . Triggered . | . . . Disarmed . | . . . Reprogrammed . | . . . Reused . | . . . Traps Extracted . | . . . Installed . | . . . Triggered . | . . . Machines | -11 -10 -10 ---------- Run | Yrd Mat Sub Machines Disabled 5 | . 3 2 Max in Single Turn 1 | . 1 1 Machines Repaired . | . . . Machines Dismantled . | . . . Machines Sabotaged . | . . . Overloaded Fab Kills . | . . . Hacking | -11 -10 -10 --------- Run | Yrd Mat Sub Machines Accessed 12 | . 8 4 Terminals 6 | . 6 . Fabricators . | . . . Repair Stations . | . . . Recycling Units 2 | . 2 . Scanalyzers . | . . . Garrison Access . | . . . Total Hacks 29 | . 21 8 Successful 23 | . 15 8 Failed 5 | . 5 . Catastrophic . | . . . Database Lockouts 1 | . 1 . Manual 17 | . 17 . Terminals 16 | . 16 . Fabricators . | . . . Repair Stations . | . . . Recycling Units 5 | . 5 . Scanalyzers . | . . . Garrison Access . | . . . Terminal Hacks 10 | . 2 8 Record 5 | . . 5 Robot Analysis 1 | . 1 . Open Door 1 | . . 1 Locate Traps 1 | . 1 . Proto ID Catalog 1 | . . 1 Release Object 1 | . . 1 Fabricator Hacks . | . . . Repair Station Hacks . | . . . Recycling Unit Hacks 2 | . 2 . Retrieve Components 2 | . 2 . Scanalyzer . | . . . Garrison Access Hacks . | . . . Unauthorized Hacks 11 | . 11 . Terminals 9 | . 9 . Assimilate 1 | . 1 . Botnet 2 | . 2 . Operators 1 | . 1 . Skim 5 | . 5 . Fabricators . | . . . Repair Stations . | . . . Recycling Units 2 | . 2 . Tunnel 2 | . 2 . Scanalyzers . | . . . Garrison Access . | . . . Data Cores Recovered . | . . . Used . | . . . Hacking Detections 6 | . 6 . Full Trace Events . | . . . Feedback Events . | . . . Feedback Blocked . | . . . Robot Schematics Acquired . | . . . Robots Built . | . . . Authchips . | . . . Time . | . . . Total Robot Build Rating . | . . . Part Schematics Acquired . | . . . Parts Built . | . . . Authchips . | . . . Time . | . . . Total Part Build Rating . | . . . Parts Repaired . | . . . Time . | . . . Parts Recycled . | . . . Recycled Matter . | . . . Retrieved Matter . | . . . Retrieved Components 16 | . 16 . Parts Scanalyzed . | . . . Part Schematics Acquired . | . . . Parts Damaged . | . . . Bothacking | -11 -10 -10 ------------ Run | Yrd Mat Sub Used RIF Installer . | . . . Robots Hacked 1 | . . 1 Non-combat 1 | . . 1 Combat . | . . . Robot Hacks Applied 1 | . . 1 parse_system 1 | . . 1 Relay Couplers Released . | . . . Fabnet Peak Effective % . | . . . Robots Rewired . | . . . Allies Hacked . | . . . Hacks Repelled . | . . . Allies | -11 -10 -10 -------- Run | Yrd Mat Sub Total Allies 1 | . 1 . Largest Group 1 | . 1 . Highest-Rated Group 10 | . 10 . Highest-Rated Ally 10 | . 10 . Total Orders . | . . . Ally Attacks . | . . . Total Damage . | . . . Kills . | . . . Allies Corrupted . | . . . Allies Melted . | . . . Intel | -11 -10 -10 ------- Run | Yrd Mat Sub Active Infowar (turns) 6603 | 58 1741 4804 Terrain 224 | . 177 47 Structural 253 | . . 253 Seismic 6126 | 58 1564 4504 Robot Analysis Total 1 | . 1 . Derelict Logs Recovered 1 | . . 1 Drone Launches . | . . . Drone Recoveries . | . . . Exploration | -11 -10 -10 ------------- Run | Yrd Mat Sub Turns Passed 6675 | 70 1741 4864 Spaces Moved 1900 | 12 655 1233 Core . | . . . Treads 1770 | . 537 1233 Legs 130 | 12 118 . Wheels . | . . . Hover . | . . . Flight . | . . . Fastest Speed 120 | 120 120 320 Average Speed 290 | 120 201 339 Slowest Speed 360 | 120 320 360 Overloaded Moves . | . . . Propulsion Burnouts . | . . . Robots Hopped . | . . . Potential Cave-ins . | . . . Cave-ins Triggered . | . . . Exploration Rate (%) 56 | 2 99 69 Regions Visited 2 Branch Regions 1 Pre-discovered Areas 6 | . 5 1 Known Exits Taken 1 | . 1 . Unknown Exits Taken 1 | 1 . . Scrap Searched 9 | . . 9 Spaces Dug 54 | . . 54 Terrain Destroyed 67 | . 8 59 Melee . | . . . Projectile 20 | . . 20 AOE 47 | . 8 39 Terrain Rammed . | . . . Walls Destroyed . | . . . Machines Disabled . | . . . Actions | -11 -10 -10 --------- Run | Yrd Mat Sub Total 2818 | 60 967 1791 Wait 622 | 41 206 375 Move 1898 | 11 654 1233 Hop . | . . . Pick Up 33 | 2 14 17 Fast Attach 8 | 1 1 6 Attach 2 | . . 2 Detach 1 | . . 1 Swap 51 | 1 17 33 Drop 46 | . 11 35 Fire 152 | 3 61 88 Melee 1 | . . 1 Ram . | . . . Kick 4 | 1 3 . Crush . | . . . Escape Stasis . | . . . Rewire . | . . . Trap . | . . . Miscellaneous . | . . . Route ------- -11/Scrapyard -10/Materials (discovered 5 exits: *Mat x3 / [*Min] / *Sub) -10/Subcaves (discovered 4 exits: *Mat x2 / *Rec / [*Scr]) History --------- Turn | Location | Event 9 | -11/Scrapyard | Discovered new exit (range 2) 71 | -11/Scrapyard | Entered Materials 300 | -10/Materials | Build established: Mutant 542 | -10/Materials | Central database locked down 560 | -10/Materials | Discovered new exit (range 4) 666 | -10/Materials | Discovered new exit (range 8) 793 | -10/Materials | Identified exit to Materials 837 | -10/Materials | Discovered exit to Materials (range 16) 868 | -10/Materials | Learned location of 1 exit from Recycling 934 | -10/Materials | Learned 4 Recycling zone layouts 990 | -10/Materials | Identified exit to Subcaves 1035 | -10/Materials | Learned Storage emergency access door positions 1072 | -10/Materials | Learned location of Subcaves (-10) 1138 | -10/Materials | Learned 2 Mines zone layouts 1188 | -10/Materials | Learned location of 2 exits from Materials 1812 | -10/Materials | Entered Subcaves 1813 | -10/Subcaves | Approached by a straggling Scientist 1814 | -10/Subcaves | Scientist uncovered a shortcut to Scraptown 1943 | -10/Subcaves | Visited Clippyterm 1953 | -10/Subcaves | Identified exit to Recycling 1953 | -10/Subcaves | Identified exit to Materials 1953 | -10/Subcaves | Learned location of Deep Caves (-7) 2713 | -10/Subcaves | Found SUBCON Basin 3023 | -10/Subcaves | Visited 4L-MR0's lab 3574 | -10/Subcaves | A swath of the cavern ceiling suddenly collapsed 4097 | -10/Subcaves | Ambushed by Subdweller buried in earth 4106 | -10/Subcaves | Core integrity fell below 50% 4817 | -10/Subcaves | Shifting Twisted Machinery released Sub. Laser 4821 | -10/Subcaves | Shifting Twisted Machinery released Mak. Light Armor Plating 4967 | -10/Subcaves | Shifting Twisted Machinery released Spk. Treads 5011 | -10/Subcaves | Shifting Twisted Machinery released Sub. Power Source 5209 | -10/Subcaves | Build established: Scavenger-Mutant 5425 | -10/Subcaves | Disturbed a concealed Subdweller 6076 | -10/Subcaves | Build established: Mutant 6364 | -10/Subcaves | Learned location of 1 exit from Materials 6673 | -10/Subcaves | Core integrity fell below 20% 6676 | -10/Subcaves | Destroyed by MH-94I(R) with Subdweller Laser Last Messages --------------- 06425_ Found 68 Matter. 06426_ Acquired 10 matter. 06433_ Subatomizers dissect the Battle Rifle. 06480_ Searching scrap... 06480_ Found Battle Rifle. 06480_ Found Sub. Power Source. 06480_ Found 49 Matter. 06487_ Dropped Sub. Power Source. 06489_ Acquired 10 matter. 06496_ Searching scrap... 06496_ Found Mak. Light Armor Plating. 06496_ Found Spk. Treads. 06496_ Found 63 Matter. 06503_ Searching scrap... 06503_ Found Battle Cannon. 06503_ Found 60 Matter. 06518_ Dropped Imp. Heat Sink. 06518_ Acquired Mak. Light Armor Plating. 06533_ Subatomizers dissect the Battle Rifle. 06671_ CH-B4A(R) destroyed. Map ----- +----------------------------------------------------+ | ????????????????## #???? #?????? | | ???????????????## ##??# ##????? | | ???????????????# ### ???? | | ???????????????# ????? | | ???????????????## ### ?????? | | ????????????????#### #????????????? | | ???????????????????# ####???????????? | | ??????????????????## ##? ##??????????? | | ?????????????????## ## ##?????????? | | ???????????????### #?????????? | | ??????????????## #?????????? | | ????########### #????????? | | ???##"" ""## ## #????????? | | ??## #%"## ## ##????????? | | ??# "###" "## ##?### #?????????? | | ??#" ##?# " ###" #?????# ????????? | | ??# #??### # #?????? ???????? | | ??# #????# ##?????? ???????? | | ??# "###??# #?????? ???????? | | ??# "##?# #" ###????? ????????? | | ??#" * "#### ## #?????? ??????????? | | ??#""%[ "## "# #?????????????????? | | ??#! = "## ## ##?????????????????? | | ??##"% %"## ## ##?????????????????? | | ???# ]""##" #;; #?????????????????? | | ???###" #######@ &! #?????????????????? | | ?????####?????###%R #??????????? | | ????????????????# #?????????? | | ????????????????### ##?????????? | | ??????????????????? # ##??????????? | | ??????????????????? ##? #??????????? | | ???????????????????? #??##??????????? | | ????????????????????# ##??????????????? | | ????????????????????? #???????????????? | | ?????????????????????? ???????????????? | | ?????????????????????? ??????????????? | | ??????????????????????? ?????????????? | | ???????????????????????# ?????????????? | | ???????????????????????????????????????? | | ???????????????????????????????????????? | | ???????????????????????????????????????? | | ???????????????????????????????????????? | | ???????????????????????????????????????? | | ???????????????????????????????????????? | | ???????????????????????????????????????? | | ???????????????????????????????????????? | | ???????????????????????????????????????? | | ???????????????????????????????????????? | | ???????????????????????????????????????? | | ???????????????????????????????????????? | +----------------------------------------------------+ Best States ------------- Heat Dissipation 25 Energy Generation 10 Energy Capacity 250 Matter Stores 300 Matter Capacity 300 Sight Range 16 Terrain Scan Range 16 Terrain Scan Density 10 Armor Coverage 100 Evasion (%) 55 Recoil Reduction 2 Item Schematics ----------------- None Robot Schematics ------------------ None Fabricated ------------ Nothing Repaired ---------- Nothing Alien Tech Used ----------------- None Achievements -------------- None Challenges ------------ None Game ------ Seed ConcussiveStormProtomatter Manual? 0 Play Time 00:30:33 Cumulative 421.1 hours Start 2025.06.04 @ 19:58:22 End 2025.06.04 @ 20:33:06 Sessions 1 Manual Loads 0 Difficulty Rogue Special Mode None Game No. 212 Rogue 149 Adventurer 63 Explorer 0 Win Type - Total 9 Types 8/0/0/1/0/0/0/0/0/0 Lore% 86 Gallery% 78 Achievement% 66 Wizard Run 0 Options --------- Layout 0 ASCII 0 Keyboard 1 Movement Numpad Keybinds 0 Fullscreen 1 Font 18/Terminus Map View 76x50 Zoom Use 0% Tactical HUD 1 Map Filters NONE Filters NONE Steam 1 RUN: 46986496-7298-4e7b-8458-2746575845e8